Cogmind - Beta 14 @@@ ROGUE MODE // 2024.12.09 @ 23:40:35 Player: Mathewnd Result: Destroyed by S-27 Virus with Autogun Performance ------------- Evolutions (6) 3000 Regions Visited (17) 3400 Robots Destroyed (52) 260 Value Destroyed (1764) 1764 Prototype IDs (37) 740 Alien Tech Used (0) 0 Bonus (884) 884 TOTAL SCORE: 10048 Bonus ------- Follower Combat Kills 154 Entered Garrisons 200 Used RIF Installer 500 Aligned with FarCom 300 Friendly Fire -270 Cogmind --------- Core Integrity 0/1150 Matter 290/300 Energy 100/100 System Corruption 4% Temperature Cool (2) Movement Flying (45) Location -4/Upper Caves Parts ------- > --- POWER (1) -------- (None) > --- PROPULSION (6) --- Field Propulsion Drive > --- UTILITY (10) ----- Improved Signal Interpreter Hacking Suite Improved Hacking Suite > --- WEAPON (2) ------- (None) > --- INVENTORY (5) ---- Advanced Hardlight Generator Drone Bay (2/2) Peak State ------------ > --- POWER ------------ Light Nuclear Core > --- PROPULSION ------- Flying Fortress v7 > --- UTILITY ---------- Small Storage Unit Advanced Visual Processing Unit Improved Signal Interpreter Improved Terrain Scanner Improved Melee Analysis Suite Improved Reaction Control System Improved Hacking Suite Improved System Restoration Module > --- WEAPON ----------- Remote Datajack Great Axe > --- INVENTORY -------- Light Deuterium Engine Improved VTOL Module Xenon Bombardment Thruster Nuclear Pulse Thruster Gravity Neutralizer Experimental Sensor Array Drone Bay Heavy Missile Launcher [Rating: 76] Favorites ----------- Power Light Nuclear Core Engine Ion Engine Power Core Light Nuclear Core Reactor Antimatter Reactor Propulsion Flying Fortress v7 Leg Aluminum Leg Wheel Compact Wheel Hover Unit Gravmag Array Flight Unit Flying Fortress v7 Utility Advanced Visual Processing Unit Device Improved Terrain Scanner Storage Small Storage Unit Processor Advanced Visual Processing Unit Hackware Improved Hacking Suite Protection Improved Light Armor Plating Weapon Great Axe Energy Cannon Heavy Ion Cannon Ballistic Gun Assault Rifle Ballistic Cannon Heavy Flak Cannon Launcher Heavy Missile Launcher Special Weapon Remote Datajack Slashing Weapon Great Axe Piercing Weapon Lance Special Melee Weapon Improved Datajack Build | -11 -10 -10 -10 -9 -8 -7 -6 -6 -6 -6 -6 -5 -5 -5 -4 -4 -4 ------- Run | Yrd Mat Min Exi Min Mat Fac Fac Ext Cet Arc Hub Fac Gar Fac Fac Upp Upp Slots Evolved 12 | . . . . . 4 2 2 . . . . 2 . . 2 . . Power . | . . . . . . . . . . . . . . . . . . Propulsion 4 | . . . . . 2 . . . . . . 2 . . . . . Utility 8 | . . . . . 2 2 2 . . . . . . . 2 . . Weapon . | . . . . . . . . . . . . . . . . . . Parts Attached 98 | 7 . 3 . . 3 6 12 18 1 2 2 10 1 18 5 10 . Power 14 | 1 . 1 . . 1 2 . 1 . . . 1 . 1 3 3 . Engine 5 | 1 . 1 . . . 1 . 1 . . . . . 1 . . . Core 8 | . . . . . 1 1 . . . . . 1 . . 3 2 . Reactor 1 | . . . . . . . . . . . . . . . . 1 . Propulsion 17 | 2 . 2 . . 1 . . 3 . . . 2 . 5 1 1 . Treads . | . . . . . . . . . . . . . . . . . . Leg 4 | 2 . 2 . . . . . . . . . . . . . . . Wheel 1 | . . . . . . . . . . . . . . 1 . . . Hover 7 | . . . . . . . . . . . . 2 . 4 1 . . Flight 5 | . . . . . 1 . . 3 . . . . . . . 1 . Utility 32 | 2 . . . . 1 1 6 7 1 . 1 5 . 4 1 3 . Device 16 | 1 . . . . . . 4 4 1 . . 2 . 1 1 2 . Storage 2 | 1 . . . . . . . . . . . . . 1 . . . Processor 4 | . . . . . 1 1 1 . . . . 1 . . . . . Hackware 6 | . . . . . . . 1 1 . . 1 . . 2 . 1 . Protection 4 | . . . . . . . . 2 . . . 2 . . . . . Artifact . | . . . . . . . . . . . . . . . . . . Weapon 35 | 2 . . . . . 3 6 7 . 2 1 2 1 8 . 3 . Energy Gun . | . . . . . . . . . . . . . . . . . . Energy Cannon 5 | . . . . . . . . 1 . 1 1 . 1 1 . . . Ballistic Gun 2 | 2 . . . . . . . . . . . . . . . . . Ballistic Cannon 1 | . . . . . . . . . . . . 1 . . . . . Launcher 10 | . . . . . . 2 2 3 . . . . . 1 . 2 . Special Weapon 10 | . . . . . . . 2 2 . 1 . 1 . 4 . . . Impact Weapon . | . . . . . . . . . . . . . . . . . . Slashing Weapon 3 | . . . . . . 1 1 1 . . . . . . . . . Piercing Weapon 3 | . . . . . . . . . . . . . . 2 . 1 . Special Melee Weapon 1 | . . . . . . . 1 . . . . . . . . . . Unidentified Prototypes 3 | . . . . . . . . 3 . . . . . . . . . Parts Lost 40 | . . . . . . . 2 6 1 4 1 1 3 4 7 11 . Power 6 | . . . . . . . . 1 . 1 . . . . 2 2 . Propulsion 8 | . . . . . . . . . 1 1 1 . 1 1 1 2 . Utility 20 | . . . . . . . 2 3 . 2 . 1 2 2 3 5 . Weapon 6 | . . . . . . . . 2 . . . . . 1 1 2 . Highest Loss Streak 6 | . . . . . . . 1 3 1 4 1 1 3 2 3 6 . To Critical Strikes . | . . . . . . . . . . . . . . . . . . Average Slot Usage (%) 68 | . 100 100 100 100 61 50 63 70 73 63 48 56 69 69 54 42 . Engine 2 | . 14 14 14 14 6 . . . 6 4 . . . 2 1 . . Core 3 | . . . . . 2 6 6 5 . . . 4 5 2 3 2 . Leg 4 | . 28 28 28 28 . . . . . . . . . . . . . Hover 3 | . . . . . . . . . . . . 7 10 11 7 5 . Flight 3 | . . . . . 9 7 6 8 16 11 4 . . . . . . Device 9 | . 14 14 14 14 9 7 8 8 26 22 11 5 10 8 6 4 . Storage 5 | . 14 14 14 14 9 7 6 6 3 . . . . 4 5 1 . Processor 12 | . . . . . 7 9 15 19 13 13 13 14 17 13 10 8 . Hackware 5 | . . . . . . . 5 6 6 6 12 5 5 11 11 13 . Protection 1 | . . . . . . . . 1 . . . 8 10 1 . . . Ballistic Gun 4 | . 28 28 28 28 18 3 . . . . . . . . . . . Special Weapon 2 | . . . . . . . 3 4 . 1 . . . 3 1 . . Slashing Weapon 2 | . . . . . . 5 6 5 . . . . . . . . . Peak Build Rating 76 | 9 9 9 12 13 46 52 76 74 51 53 32 58 57 69 62 69 18 Average Rating 47 | 6 9 9 10 12 43 48 63 65 48 42 29 44 55 56 44 38 18 On Entrance 32 | . 9 9 9 12 13 46 52 71 51 46 24 20 57 42 62 38 18 Naked Turns . | . . . . . . . . . . . . . . . . . . Heaviest Build 39 | 14 14 14 14 14 14 15 23 25 17 12 12 24 24 29 28 39 . Greatest Support 50 | 20 20 20 20 20 50 50 50 50 17 12 6 29 29 43 31 29 7 Greatest Overweight (x) 5 | 3 . . . . . . . 1 . 1 3 5 . . 2 2 . Average Overweight (x) . | . . . . . . . . . . . . . . . . . . Largest Inventory Capacity 10 | 8 8 8 8 8 8 8 8 8 8 5 5 5 5 10 10 10 5 Average Capacity 7 | 7 8 8 8 8 8 8 8 8 6 5 5 5 5 9 10 6 5 Most Carried 9 | 8 8 8 8 8 8 8 8 8 6 5 5 5 5 9 6 6 2 Average Carried 6 | 5 7 7 7 7 7 7 7 7 5 4 3 4 5 4 4 2 2 Final Capacity 10 | 8 8 8 8 8 8 8 8 8 5 5 5 5 5 10 10 5 5 Final Carried 8 | 6 8 8 8 8 8 8 8 6 5 5 4 5 5 4 5 2 2 Class Distribution -------------------- 43% | Mutant 30% | Scout 18% | Hacker-Mutant 3% | Skirmisher Dominant Class ---------------- Mutant | -10/Materials Mutant | -10/Mines Mutant | -10/Exiles Skirmisher | -9/Mines Scout | -8/Materials Scout | -7/Factory Scout | -6/Factory Mutant | -6/Extension Infiltrator-Scout | -6/Cetus Infiltrator-Scout | -6/Archives Hacker-Mutant | -6/Hub_04(d) Mutant | -5/Factory Mutant | -5/Garrison Hacker-Mutant | -5/Factory Hacker-Mutant | -4/Factory Hacker-Mutant | -4/Upper Caves Hacker-Mutant | -4/Upper Caves Resources | -11 -10 -10 -10 -9 -8 -7 -6 -6 -6 -6 -6 -5 -5 -5 -4 -4 -4 ----------- Run | Yrd Mat Min Exi Min Mat Fac Fac Ext Cet Arc Hub Fac Gar Fac Fac Upp Upp Matter Collected 1741 | 297 9 66 . . 38 88 286 219 . . . 10 . 474 . 254 . Remotely . | . . . . . . . . . . . . . . . . . . Salvage Created 1793 | 43 12 34 . 14 . 53 593 468 . . . 36 . 403 34 103 . Parts 95 | 8 2 1 . 1 . 6 32 18 . . . 6 . 15 3 3 . Haulers Intercepted 1 | . . . . . . . 1 . . . . . . . . . . Recyclers Shooed 3 | . . 1 . . . . 1 . . . . . . 1 . . . Parts Field Recycled . | . . . . . . . . . . . . . . . . . . Retrieved Matter . | . . . . . . . . . . . . . . . . . . Parts Self-Destructed 2 | . . . . . . . . . . . . . . . . 2 . Prevented . | . . . . . . . . . . . . . . . . . . Kills | -11 -10 -10 -10 -9 -8 -7 -6 -6 -6 -6 -6 -5 -5 -5 -4 -4 -4 ------- Run | Yrd Mat Min Exi Min Mat Fac Fac Ext Cet Arc Hub Fac Gar Fac Fac Upp Upp Combat Hostiles Destroyed 32 | . . 1 . 1 . 3 8 7 . . . 4 . 5 . 3 . Melee 2 | . . . . . . . 1 . . . . . . . . 1 . Guns 2 | . . 1 . 1 . . . . . . . . . . . . . Cannons 1 | . . . . . . . . . . . . 1 . . . . . AOE 27 | . . . . . . 3 7 7 . . . 3 . 5 . 2 . Classes Destroyed 14 | 1 1 1 . 1 . 1 8 1 . . . . . . . . . Worker 2 | . . . . . . . 1 . . . . . . 1 . . . Builder 1 | . . . . . . . 1 . . . . . . . . . . Tunneler 3 | 3 . . . . . . . . . . . . . . . . . Hauler 1 | . . . . . . . 1 . . . . . . . . . . Recycler 5 | . . . . . . . 1 2 . . . . . 2 . . . Mechanic 1 | . . . . . . . 1 . . . . . . . . . . Operator 4 | . 1 . . . . . 1 1 . . . . . . 1 . . Watcher 3 | . . . . . . 1 1 1 . . . . . . . . . Swarmer 16 | . . . . 1 . 3 . 4 . . . 4 . 4 . . . Grunt 8 | . . 1 . . . . 3 2 . . . . . . . 2 . Duelist 1 | . . . . . . . . 1 . . . . . . . . . Specialist 2 | . . . . . . . 2 . . . . . . . . . . Hunter 1 | . . . . . . . 1 . . . . . . . . . . Programmer 4 | . . . . . . . 2 . . . . . . 1 . 1 . Best Kill Streak 7 | 2 1 1 . 1 . 4 7 4 . . . 4 . 5 1 2 . Combat Bots Only 4 | . . 1 . 1 . 3 4 4 . . . 4 . 4 . 2 . Max Kills in Single Turn 5 | 1 1 1 . 1 . 3 2 2 . . . 3 . 5 1 1 . Gunslinging . | . . . . . . . . . . . . . . . . . . Exploded 4 | . . . . . . 2 2 2 . . . 3 . 4 . 1 . Melee 1 | . . . . . . . 1 . . . . . . . . 1 . Uniques/NPCs Destroyed . | . . . . . . . . . . . . . . . . . . Combat | -11 -10 -10 -10 -9 -8 -7 -6 -6 -6 -6 -6 -5 -5 -5 -4 -4 -4 -------- Run | Yrd Mat Min Exi Min Mat Fac Fac Ext Cet Arc Hub Fac Gar Fac Fac Upp Upp Hostile Shots Fired 598 | . 25 13 . 18 3 8 59 74 26 16 7 21 60 49 79 133 7 Missed 301 | . 8 2 . 6 1 6 30 54 20 10 1 6 33 21 38 60 5 Damage Taken 5140 | . 136 122 . 174 27 24 511 371 180 143 78 426 422 573 634 1287 32 Core 1838 | . 31 32 . 26 . . 65 107 114 25 46 110 46 77 246 881 32 Absorbed by Shields 94 | . . . . . . . . 61 . . . . 24 9 . . . Regen/Repaired (Parts) 166 | . . . . . . . . . . . . 13 . 153 . . . Core Remaining (%) 83 | 100 . . . 64 100 100 . . . . 58 . . 76 . . . Volleys Fired 88 | 8 1 9 . 2 . 2 15 14 . 3 1 7 6 14 1 5 . Largest 2 | 2 2 2 . 2 . 1 1 1 . 1 1 1 1 1 1 1 . Hottest 65 | 40 40 40 . 40 . 39 39 39 . 65 65 53 65 65 7 46 . Shots Fired 108 | 16 2 18 . 4 . 2 15 14 . 3 1 7 6 14 1 5 . Gun 40 | 16 2 18 . 4 . . . . . . . . . . . . . Cannon 22 | . . . . . . . . . . 1 1 7 6 7 . . . Launcher 25 | . . . . . . 2 11 6 . . . . . 1 . 5 . Special 21 | . . . . . . . 4 8 . 2 . . . 6 1 . . Kinetic 47 | 16 2 18 . 4 . . . . . . . 7 . . . . . Thermal 15 | . . . . . . . . . . 1 1 . 6 7 . . . Explosive 25 | . . . . . . 2 11 6 . . . . . 1 . 5 . Electromagnetic . | . . . . . . . . . . . . . . . . . . Robot Hit Streak 7 | 4 4 7 . 1 . 1 4 3 . 3 . 3 . 5 4 5 . Robot Miss Streak 7 | 3 . 3 . 2 . 1 1 2 . . 1 7 . 1 . . . Penetration Max . | . . . . . . . . . . . . . . . . . . Secondary Targets . | . . . . . . . . . . . . . . . . . . Shots Hit Robots 79 | 9 2 9 . 2 . 1 18 10 . 3 . 4 . 13 4 4 . Core Hits 87 | 4 2 3 . 1 . 4 36 13 . . . 8 . 7 2 7 . Critical Kills 1 | . . . . . . . . . . . . . . 1 . . . Critical Parts Destroyed . | . . . . . . . . . . . . . . . . . . Critical Strikes 3 | . . . . . . . 1 . . . . . . 2 . . . Meltdown 1 | . . . . . . . . . . . . . . 1 . . . Sever 1 | . . . . . . . 1 . . . . . . . . . . Impale 1 | . . . . . . . . . . . . . . 1 . . . Melee Attacks 43 | . . . . . . . 11 12 . . . . . 10 5 5 . Impact . | . . . . . . . . . . . . . . . . . . Slashing 23 | . . . . . . . 11 12 . . . . . . . . . Piercing 20 | . . . . . . . . . . . . . . 10 5 5 . Sneak Attacks 5 | . . . . . . . 3 2 . . . . . . . . . Combat Hostiles . | . . . . . . . . . . . . . . . . . . Follow-up Attacks . | . . . . . . . . . . . . . . . . . . Damage Inflicted 6349 | 94 22 97 . 15 . 290 2585 1172 . 27 . 375 . 693 117 862 . Guns 228 | 94 22 97 . 15 . . . . . . . . . . . . . Cannons 273 | . . . . . . . . . . 27 . 84 . 162 . . . Explosions 4869 | . . . . . . 290 2127 906 . . . 291 . 502 . 753 . Melee 947 | . . . . . . . 458 234 . . . . . 29 117 109 . Ramming 32 | . . . . . . . . 32 . . . . . . . . . Kinetic 312 | 94 22 97 . 15 . . . . . . . 84 . . . . . Thermal 923 | . . . . . . . 99 344 . 27 . 291 . 162 . . . Explosive 4135 | . . . . . . 290 2028 562 . . . . . 502 . 753 . Electromagnetic . | . . . . . . . . . . . . . . . . . . Impact . | . . . . . . . . . . . . . . . . . . Slashing 692 | . . . . . . . 458 234 . . . . . . . . . Piercing 255 | . . . . . . . . . . . . . . 29 117 109 . Highest Corruption 5 | . . . . . . . 3 5 5 5 5 . . 2 . 4 4 Average Corruption 2 | . . . . . . . 1 2 5 5 5 . . 1 . 3 4 Corruption Purged 5 | . . . . . . . 3 . . . . . . 2 . . . Corruption Blocked . | . . . . . . . . . . . . . . . . . . Effects 21 | . . . . . . . 4 2 3 1 5 . . 2 . 4 . Message Errors 6 | . . . . . . . 2 . 1 1 2 . . . . . . Matter Fused 4 | . . . . . . . 1 1 . . 1 . . . . 1 . Heat Flow Errors 3 | . . . . . . . . 1 . . . . . 2 . . . Energy Discharges 1 | . . . . . . . . . . . 1 . . . . . . Parts Rejected 1 | . . . . . . . . . 1 . . . . . . . . Parts Fused 1 | . . . . . . . . . . . . . . . . 1 . Data Loss (minor) 2 | . . . . . . . 1 . . . . . . . . 1 . Data Loss (major) 2 | . . . . . . . . . 1 . 1 . . . . . . Alerts 1 | . . . . . . . . . . . . . . . . 1 . Overload Shots . | . . . . . . . . . . . . . . . . . . Overflow Damage 393 | . . . . . . 51 64 132 . . . 89 . 9 . 48 . Projectiles . | . . . . . . . . . . . . . . . . . . Explosions 271 | . . . . . . 51 22 52 . . . 89 . 9 . 48 . Melee 122 | . . . . . . . 42 80 . . . . . . . . . Knockbacks . | . . . . . . . . . . . . . . . . . . Impact . | . . . . . . . . . . . . . . . . . . Kinetic . | . . . . . . . . . . . . . . . . . . Secondary . | . . . . . . . . . . . . . . . . . . Self-Inflicted Damage 254 | . . . . . . . 42 32 . . . 180 . . . . . Shots 4 | . . . . . . . 1 . . . . 3 . . . . . Rammed . | . . . . . . . . . . . . . . . . . . Targets Rammed . | . . . . . . . . . . . . . . . . . . Kicked . | . . . . . . . . . . . . . . . . . . Crushed . | . . . . . . . . . . . . . . . . . . Highest Temperature 272 | . . 12 . . . . 5 122 . 10 . 27 47 272 . 102 . Average Temperature 51 | . . 6 . . . . 3 72 . 7 . 16 17 80 . 58 . Received Heat Transfer 412 | . . 66 . . 9 . 9 81 36 18 . 18 . 54 63 58 . Siege Activations . | . . . . . . . . . . . . . . . . . . Robots Corrupted . | . . . . . . . . . . . . . . . . . . Combat Hostiles . | . . . . . . . . . . . . . . . . . . Parts Fried . | . . . . . . . . . . . . . . . . . . Impact Corruptions . | . . . . . . . . . . . . . . . . . . Robots Melted 1 | . . . . . . . . . . . . . . 1 . . . Combat Hostiles . | . . . . . . . . . . . . . . . . . . Parts Melted 1 | . . . . . . . . . . . . . . 1 . . . Heat Transferred 659 | . . . . . . . 50 200 . 37 . 150 . 222 . . . Parts Sabotaged . | . . . . . . . . . . . . . . . . . . Parts Stolen . | . . . . . . . . . . . . . . . . . . Parts Stripped . | . . . . . . . . . . . . . . . . . . Power Chain Reactions . | . . . . . . . . . . . . . . . . . . Alert | -11 -10 -10 -10 -9 -8 -7 -6 -6 -6 -6 -6 -5 -5 -5 -4 -4 -4 ------- Run | Yrd Mat Min Exi Min Mat Fac Fac Ext Cet Arc Hub Fac Gar Fac Fac Upp Upp Peak Influence 447 | 15 29 30 . 20 52 150 330 249 151 86 95 447 389 300 210 . . Initial 212 | . 9 10 . . 7 23 7 104 136 56 26 53 174 212 138 . . Average 122 | 7 23 22 . . 41 43 117 76 143 65 47 316 211 242 147 . . Maximum Alert Level 2 | . . . . . . . 1 1 . . . 2 1 1 1 . . Low Security (%) 73 | 100 100 100 . 100 100 100 79 97 100 100 100 6 15 15 98 . . Level 1 25 | . . . . . . . 20 2 . . . 76 84 84 1 . . Level 2 1 | . . . . . . . . . . . . 17 . . . . . Level 3 . | . . . . . . . . . . . . . . . . . . Level 4 . | . . . . . . . . . . . . . . . . . . Level 5 . | . . . . . . . . . . . . . . . . . . High Security . | . . . . . . . . . . . . . . . . . . Max Security . | . . . . . . . . . . . . . . . . . . Squads Dispatched 26 | . 1 . . . 1 2 9 3 1 . 3 1 . 3 2 . . Investigation 5 | . . . . . . . 2 2 1 . . . . . . . . Extermination 5 | . . . . . . 1 2 . . . . . . 2 . . . Reinforcement 14 | . 1 . . . 1 . 4 1 . . 3 1 . 1 2 . . Assault . | . . . . . . . . . . . . . . . . . . Garrison 2 | . . . . . . 1 1 . . . . . . . . . . Intercept . | . . . . . . . . . . . . . . . . . . Searches Triggered . | . . . . . . . . . . . . . . . . . . Construction Impeded . | . . . . . . . . . . . . . . . . . . Haulers Reinforced 1 | . . . . . . . 1 . . . . . . . . . . Active Scanning Responses . | . . . . . . . . . . . . . . . . . . Cargo Convoy Interrupts 1 | . . . . . . . 1 . . . . . . . . . . Stealth | -11 -10 -10 -10 -9 -8 -7 -6 -6 -6 -6 -6 -5 -5 -5 -4 -4 -4 --------- Run | Yrd Mat Min Exi Min Mat Fac Fac Ext Cet Arc Hub Fac Gar Fac Fac Upp Upp Distress Signals 8 | . 2 . . . 1 1 . 2 1 . . . . 1 . . . Communications Jammed . | . . . . . . . . . . . . . . . . . . Distress Signals . | . . . . . . . . . . . . . . . . . . Times Spotted 191 | . 6 2 . 6 5 11 27 29 8 4 8 17 21 20 12 11 4 Peak Tracking Total 19 | . 5 2 . 3 3 7 10 8 8 4 6 7 19 5 4 4 4 Tactical Retreats 26 | . . . . 1 . . 2 6 . . 1 2 2 6 3 3 . Traps | -11 -10 -10 -10 -9 -8 -7 -6 -6 -6 -6 -6 -5 -5 -5 -4 -4 -4 ------- Run | Yrd Mat Min Exi Min Mat Fac Fac Ext Cet Arc Hub Fac Gar Fac Fac Upp Upp Traps Triggered 9 | . . . . . . . . 3 . . . 1 4 1 . . . Indirectly . | . . . . . . . . . . . . . . . . . . Trap Hack Attempts . | . . . . . . . . . . . . . . . . . . Triggered . | . . . . . . . . . . . . . . . . . . Disarmed . | . . . . . . . . . . . . . . . . . . Reprogrammed . | . . . . . . . . . . . . . . . . . . Reused . | . . . . . . . . . . . . . . . . . . Traps Extracted . | . . . . . . . . . . . . . . . . . . Installed . | . . . . . . . . . . . . . . . . . . Triggered 1 | . . . . . . . 1 . . . . . . . . . . Machines | -11 -10 -10 -10 -9 -8 -7 -6 -6 -6 -6 -6 -5 -5 -5 -4 -4 -4 ---------- Run | Yrd Mat Min Exi Min Mat Fac Fac Ext Cet Arc Hub Fac Gar Fac Fac Upp Upp Machines Disabled 15 | . . . . . . . 7 3 . . . 5 . . . . . Max in Single Turn 7 | . . . . . . . 7 3 . . . 5 . . . . . Garrison Access 2 | . . . . . 1 . . . . . . 1 . . . . . Energy Cycler 2 | . . . . . . . . 2 . . . . . . . . . Machines Repaired . | . . . . . . . . . . . . . . . . . . Machines Dismantled . | . . . . . . . . . . . . . . . . . . Machines Sabotaged . | . . . . . . . . . . . . . . . . . . Overloaded Fab Kills . | . . . . . . . . . . . . . . . . . . Hacking | -11 -10 -10 -10 -9 -8 -7 -6 -6 -6 -6 -6 -5 -5 -5 -4 -4 -4 --------- Run | Yrd Mat Min Exi Min Mat Fac Fac Ext Cet Arc Hub Fac Gar Fac Fac Upp Upp Machines Accessed 45 | . . . 2 . 2 3 6 12 1 . 3 8 1 6 1 . . Terminals 28 | . . . . . 1 1 5 12 1 . 3 2 1 1 1 . . Fabricators 4 | . . . . . . 2 . . . . . . . 2 . . . Repair Stations 5 | . . . . . . . . . . . . 3 . 2 . . . Recycling Units 3 | . . . . . . . 1 . . . . 1 . 1 . . . Scanalyzers . | . . . . . . . . . . . . . . . . . . Garrison Access 3 | . . . . . 1 . . . . . . 2 . . . . . Total Hacks 93 | . . . 6 . 4 3 13 25 2 . 3 18 2 15 2 . . Successful 48 | . . . 6 . 2 1 4 12 . . 3 11 1 7 1 . . Failed 45 | . . . . . 2 2 9 13 2 . . 7 1 8 1 . . Catastrophic 8 | . . . . . 1 . 2 2 2 . . . . 1 . . . Database Lockouts . | . . . . . . . . . . . . . . . . . . Manual 3 | . . . 1 . 1 . . . 1 . . . . . . . . Terminals 54 | . . . . . 2 1 12 25 2 . 3 3 2 2 2 . . Fabricators 5 | . . . . . . 2 . . . . . . . 3 . . . Repair Stations 18 | . . . . . . . . . . . . 10 . 8 . . . Recycling Units 6 | . . . . . . . 1 . . . . 3 . 2 . . . Scanalyzers . | . . . . . . . . . . . . . . . . . . Garrison Access 4 | . . . . . 2 . . . . . . 2 . . . . . Terminal Hacks 30 | . . . 6 . 1 . 3 12 . . 3 2 1 1 1 . . Record 8 | . . . 5 . . . 1 . . . 1 . . 1 . . . Robot Schematic 1 | . . . . . . . . 1 . . . . . . . . . Open Door 6 | . . . . . . . 1 5 . . . . . . . . . Open DSF 1 | . . . . . . . . . . . . 1 . . . . . Branch Access Points 1 | . . . . . . . . 1 . . . . . . . . . Emergency Access Points 2 | . . . . . . . . . . . 1 . 1 . . . . Alert Level 3 | . . . . . 1 . . 1 . . . 1 . . . . . Locate Traps 2 | . . . . . . . 1 . . . 1 . . . . . . Recall Investigation 1 | . . . . . . . . 1 . . . . . . . . . Recall Reinforcements 2 | . . . . . . . . 2 . . . . . . . . . Zone Layout 2 | . . . . . . . . 1 . . . . . . 1 . . Derelict Proto ID Bank 1 | . . . 1 . . . . . . . . . . . . . . Fabricator Hacks 2 | . . . . . . 1 . . . . . . . 1 . . . Network Status 1 | . . . . . . 1 . . . . . . . . . . . Build 1 | . . . . . . . . . . . . . . 1 . . . Repair Station Hacks 8 | . . . . . . . . . . . . 4 . 4 . . . Scan Component 5 | . . . . . . . . . . . . 3 . 2 . . . Repair 3 | . . . . . . . . . . . . 1 . 2 . . . Recycling Unit Hacks 5 | . . . . . . . 1 . . . . 3 . 1 . . . Report Inventory 2 | . . . . . . . 1 . . . . 1 . . . . . Retrieve Components 3 | . . . . . . . . . . . . 2 . 1 . . . Scanalyzer . | . . . . . . . . . . . . . . . . . . Garrison Access Hacks 3 | . . . . . 1 . . . . . . 2 . . . . . Unlock Access 1 | . . . . . . . . . . . . 1 . . . . . Seal Access 2 | . . . . . 1 . . . . . . 1 . . . . . Unauthorized Hacks . | . . . . . . . . . . . . . . . . . . Terminals . | . . . . . . . . . . . . . . . . . . Fabricators . | . . . . . . . . . . . . . . . . . . Repair Stations . | . . . . . . . . . . . . . . . . . . Recycling Units . | . . . . . . . . . . . . . . . . . . Scanalyzers . | . . . . . . . . . . . . . . . . . . Garrison Access . | . . . . . . . . . . . . . . . . . . Data Cores Recovered . | . . . . . . . . . . . . . . . . . . Used . | . . . . . . . . . . . . . . . . . . Hacking Detections 31 | . . . . . 2 2 5 8 2 . . 6 . 5 1 . . Full Trace Events 5 | . . . . . . . 2 2 1 . . . . . . . . Feedback Events 1 | . . . . . . . 1 . . . . . . . . . . Corruption 1 | . . . . . . . 1 . . . . . . . . . . Feedback Blocked . | . . . . . . . . . . . . . . . . . . Robot Schematics Acquired 1 | . . . . . . . . 1 . . . . . . . . . Robots Built 1 | . . . . . . . . . . . . . . 1 . . . Authchips . | . . . . . . . . . . . . . . . . . . Time 152 | . . . . . . . . . . . . . . 152 . . . Total Robot Build Rating 5 | . . . . . . . . . . . . . . 5 . . . Part Schematics Acquired . | . . . . . . . . . . . . . . . . . . Parts Built . | . . . . . . . . . . . . . . . . . . Authchips . | . . . . . . . . . . . . . . . . . . Time . | . . . . . . . . . . . . . . . . . . Total Part Build Rating . | . . . . . . . . . . . . . . . . . . Parts Repaired 3 | . . . . . . . . . . . . 1 . 2 . . . Time 103 | . . . . . . . . . . . . 25 . 78 . . . Parts Recycled . | . . . . . . . . . . . . . . . . . . Recycled Matter . | . . . . . . . . . . . . . . . . . . Retrieved Matter . | . . . . . . . . . . . . . . . . . . Retrieved Components 4 | . . . . . . . . . . . . 3 . 1 . . . Parts Scanalyzed . | . . . . . . . . . . . . . . . . . . Part Schematics Acquired . | . . . . . . . . . . . . . . . . . . Parts Damaged . | . . . . . . . . . . . . . . . . . . Bothacking | -11 -10 -10 -10 -9 -8 -7 -6 -6 -6 -6 -6 -5 -5 -5 -4 -4 -4 ------------ Run | Yrd Mat Min Exi Min Mat Fac Fac Ext Cet Arc Hub Fac Gar Fac Fac Upp Upp Used RIF Installer 1 | . . . . . . . . . . . . . 1 . . . . Robots Hacked 10 | . . . . . . . 3 3 . 1 . . . 3 . . . Non-combat 9 | . . . . . . . 2 3 . 1 . . . 3 . . . Combat 1 | . . . . . . . 1 . . . . . . . . . . Robot Hacks Applied 12 | . . . . . . . 3 3 . 2 . . . 4 . . . parse_system 4 | . . . . . . . 1 2 . . . . . 1 . . . no_distress 6 | . . . . . . . 2 1 . 1 . . . 2 . . . ignore_parts 1 | . . . . . . . . . . . . . . 1 . . . check_alert 1 | . . . . . . . . . . 1 . . . . . . . Relay Couplers Released . | . . . . . . . . . . . . . . . . . . Fabnet Peak Effective % . | . . . . . . . . . . . . . . . . . . Robots Rewired . | . . . . . . . . . . . . . . . . . . Allies Hacked 1 | . . . . . . . . . . . . . . 1 . . . Hacks Repelled . | . . . . . . . . . . . . . . . . . . Allies | -11 -10 -10 -10 -9 -8 -7 -6 -6 -6 -6 -6 -5 -5 -5 -4 -4 -4 -------- Run | Yrd Mat Min Exi Min Mat Fac Fac Ext Cet Arc Hub Fac Gar Fac Fac Upp Upp Total Allies 5 | . . . . . . . . 4 . . . . . 1 . . . Largest Group 2 | . . . . . . . . 2 . . . . . 1 . . . Highest-Rated Group 190 | . . . . . . . . 190 . . . . . 23 . . . Highest-Rated Ally 159 | . . . . . . . . 159 . . . . . 23 . . . Total Orders . | . . . . . . . . . . . . . . . . . . Ally Attacks 34 | . . . . . . . . 34 . . . . . . . . . Total Damage 876 | . . . . . . . . 876 . . . . . . . . . Kills 4 | . . . . . . . . 4 . . . . . . . . . Allies Corrupted . | . . . . . . . . . . . . . . . . . . Allies Melted . | . . . . . . . . . . . . . . . . . . Intel | -11 -10 -10 -10 -9 -8 -7 -6 -6 -6 -6 -6 -5 -5 -5 -4 -4 -4 ------- Run | Yrd Mat Min Exi Min Mat Fac Fac Ext Cet Arc Hub Fac Gar Fac Fac Upp Upp Robot Analysis Total . | . . . . . . . . . . . . . . . . . . Derelict Logs Recovered 4 | . . 1 . 2 . . . . . . . . . . . 1 . Drone Launches . | . . . . . . . . . . . . . . . . . . Drone Recoveries . | . . . . . . . . . . . . . . . . . . Exploration | -11 -10 -10 -10 -9 -8 -7 -6 -6 -6 -6 -6 -5 -5 -5 -4 -4 -4 ------------- Run | Yrd Mat Min Exi Min Mat Fac Fac Ext Cet Arc Hub Fac Gar Fac Fac Upp Upp Turns Passed 7654 | 218 144 346 321 264 228 571 929 1776 61 32 204 598 296 1004 390 269 3 Spaces Moved 8025 | 112 108 140 266 202 233 520 1051 2013 170 52 173 858 304 989 497 330 7 Core 344 | 12 . . . . . . . . . . 108 99 . . . 125 . Treads . | . . . . . . . . . . . . . . . . . . Legs 816 | 100 108 140 266 202 . . . . . . . . . . . . . Wheels . | . . . . . . . . . . . . . . . . . . Hover 2742 | . . . . . . . . . . . . 759 304 989 497 193 . Flight 4123 | . . . . . 233 520 1051 2013 170 52 65 . . . . 12 7 Fastest Speed 32 | 50 120 120 120 120 50 50 50 32 32 37 40 46 46 55 51 45 45 Average Speed 60 | 116 120 120 120 120 50 50 50 49 34 39 90 57 46 57 64 60 45 Slowest Speed 300 | 200 120 120 120 120 50 50 50 108 37 120 200 300 60 61 150 150 45 Overloaded Moves . | . . . . . . . . . . . . . . . . . . Propulsion Burnouts . | . . . . . . . . . . . . . . . . . . Robots Hopped 14 | . . . . . 2 3 . 7 2 . . . . . . . . Cave-ins Triggered . | . . . . . . . . . . . . . . . . . . Exploration Rate (%) 35 | 5 24 31 66 52 29 14 21 80 71 63 21 26 40 20 15 52 2 Regions Visited 17 Branch Regions 9 Pre-discovered Areas 2 | . . 1 1 . . . . . . . . . . . . . . Known Exits Taken 11 | . . . . 1 . 1 1 1 1 1 1 1 . 1 1 1 . Unknown Exits Taken 5 | 1 1 1 1 . 1 . . . . . . . . . . . . Scrap Searched 5 | . . . . 2 . . . . . . . . . . . 3 . Spaces Dug 17 | . . . . . . . 1 9 . . . . . 6 1 . . Terrain Destroyed 381 | . . . . . . 15 95 108 . . . 66 . 14 1 82 . Melee 17 | . . . . . . . 1 9 . . . . . 6 1 . . Projectile . | . . . . . . . . . . . . . . . . . . AOE 363 | . . . . . . 15 94 98 . . . 66 . 8 . 82 . Terrain Rammed 1 | . . . . . . . . 1 . . . . . . . . . Walls Destroyed 1 | . . . . . . . . 1 . . . . . . . . . Machines Disabled . | . . . . . . . . . . . . . . . . . . Actions | -11 -10 -10 -10 -9 -8 -7 -6 -6 -6 -6 -6 -5 -5 -5 -4 -4 -4 --------- Run | Yrd Mat Min Exi Min Mat Fac Fac Ext Cet Arc Hub Fac Gar Fac Fac Upp Upp Total 10651 | 184 122 302 270 220 342 827 1421 2754 169 61 220 956 450 1403 558 385 7 Wait 2269 | 45 4 145 . 15 101 292 319 679 . 3 43 70 131 347 46 29 . Move 7982 | 111 107 139 265 201 228 513 1050 1999 165 51 172 858 303 988 496 329 7 Hop 13 | . . . . . 2 3 . 6 2 . . . . . . . . Pick Up 64 | 13 6 3 1 1 5 3 6 3 . . . 7 . 8 4 4 . Fast Attach 25 | . . . . . 1 4 5 6 1 . . 5 . 3 . . . Attach 54 | 7 . . . . 1 . 3 8 . 2 2 5 . 13 4 9 . Detach 19 | . . . . . . . 1 5 . 2 1 1 . 5 1 3 . Swap 19 | . . 3 . . 1 2 4 4 . . . . 1 2 1 1 . Drop 41 | . 4 3 4 1 3 8 7 4 1 . 1 3 . 2 . . . Fire 88 | 8 1 9 . 2 . 2 15 14 . 3 1 7 6 14 1 5 . Melee 43 | . . . . . . . 11 12 . . . . . 10 5 5 . Ram 1 | . . . . . . . . 1 . . . . . . . . . Kick . | . . . . . . . . . . . . . . . . . . Crush . | . . . . . . . . . . . . . . . . . . Escape Stasis 33 | . . . . . . . . 13 . . . . 9 11 . . . Rewire . | . . . . . . . . . . . . . . . . . . Trap . | . . . . . . . . . . . . . . . . . . Miscellaneous . | . . . . . . . . . . . . . . . . . . Route ------- -11/Scrapyard -10/Materials -10/Mines (discovered 2 exits: [*Mat] / *Exi) -10/Exiles -9/Mines -8/Materials (discovered 2 exits: *Fac / Sto) -7/Factory (discovered 2 exits: *Fac / *Low) -6/Factory -6/Extension (discovered 3 exits: *Fac x2 / *Cet) -6/Cetus (discovered 2 exits: *Fac / *Arc) -6/Archives -6/Hub_04(d) -5/Factory (discovered 2 exits: *Fac / Gar) -5/Garrison -5/Factory -4/Factory -4/Upper Caves -4/Upper Caves History --------- Turn | Location | Event 3 | -11/Scrapyard | Discovered new exit (range 15) 219 | -11/Scrapyard | Entered Materials 315 | -10/Materials | Build established: Mutant 322 | -10/Materials | Discovered new exit (range 7) 333 | -10/Materials | Met 8R-AWN 363 | -10/Materials | Entered Mines 364 | -10/Mines | Followed 8R-AWN into the Mines 400 | -10/Mines | Excavation squad dispatched 400 | -10/Mines | A large section of the Mines collapsed 400 | -10/Mines | Received a Rocket Launcher from a helpful Derelict 550 | -10/Mines | Discovered new exit (range 13) 670 | -10/Mines | Learned 2 Materials zone layouts 690 | -10/Mines | Learned location of Storage (-8) 705 | -10/Mines | Discovered new exit (range 5) 709 | -10/Mines | Entered Exiles 737 | -10/Exiles | Welcomed by 8R-AWN 759 | -10/Exiles | Met EX-HEX 791 | -10/Exiles | Met EX-BIN 808 | -10/Exiles | Aligned with FarCom system 809 | -10/Exiles | Given EX-Vault access code 837 | -10/Exiles | Opened EX-Vault 847 | -10/Exiles | Found Flying Fortress v7 874 | -10/Exiles | Warned to stay clear of 0b10 Research branches 908 | -10/Exiles | Met EX-DEC 954 | -10/Exiles | Learned location of Zion (-6) 1020 | -10/Exiles | Discovered new exit (range 11) 1030 | -10/Exiles | Left Exiles lab with Flying Fortress v7 1030 | -10/Exiles | Entered Mines 1106 | -9/Mines | Found a damaged Exp. Sensor Array with a note attached 1109 | -9/Mines | Found Prototype Device 1202 | -9/Mines | Assembled infested the area 1207 | -9/Mines | Assisted by a Guerilla fighting off Assembled 1212 | -9/Mines | Identified exit to Materials 1220 | -9/Mines | Found DCF Scrap (11 items) 1294 | -9/Mines | Entered Materials 1294 | -8/Materials | Evolved 4 slots: Propulsion x2, Utility x2 1295 | -8/Materials | Identified exit to Storage 1427 | -8/Materials | Met 7R-MNS 1492 | -8/Materials | Discovered new exit (range 19) 1522 | -8/Materials | Entered Factory 1522 | -7/Factory | Evolved 2 slots: Utility x2 1523 | -7/Factory | Caught up to 7R-MNS 1592 | -7/Factory | Build established: Scout 1847 | -7/Factory | Discovered new exit (range 15) 1868 | -7/Factory | Garrison activated, responded to threat 1903 | -7/Factory | Identified exit to Lower Caves 2074 | -7/Factory | Discovered new exit (range 11) 2088 | -7/Factory | Identified exit to Factory 2093 | -7/Factory | Entered another Factory area 2093 | -6/Factory | Evolved 2 slots: Utility x2 2094 | -6/Factory | Caught up to 7R-MNS 2724 | -6/Factory | Cargo convoy interrupted 2730 | -6/Factory | Garrison activated, responded to threat 2776 | -6/Factory | Attacked by 7R-MNS 3020 | -6/Factory | Discovered new exit (range 5) 3021 | -6/Factory | Identified exit to Extension 3022 | -6/Factory | Entered Extension 3266 | -6/Extension | Spotted B-75 Beast 3269 | -6/Extension | Spotted B-75 Beast 3935 | -6/Extension | Build established: Mutant 4058 | -6/Extension | Energy Cycler disabled 4058 | -6/Extension | Rescued a captive Derelict 4058 | -6/Extension | Rescued a captive Derelict 4059 | -6/Extension | Rescued a captive Derelict 4060 | -6/Extension | Rescued a captive Derelict 4062 | -6/Extension | Rescued a captive Derelict 4062 | -6/Extension | Rescued a captive Derelict 4062 | -6/Extension | Rescued a captive Derelict 4063 | -6/Extension | Rescued a captive Derelict 4064 | -6/Extension | Rescued a captive Derelict 4069 | -6/Extension | Rescued a captive Derelict 4205 | -6/Extension | Identified exit to Cetus 4226 | -6/Extension | Rescued A7 4315 | -6/Extension | Discovered new exit (range 19) 4776 | -6/Extension | Discovered new exit (range 10) 4786 | -6/Extension | Identified exit to Factory 4789 | -6/Extension | Lost 3 parts (2u1w) 4795 | -6/Extension | Identified Exp. Sensor Array 4798 | -6/Extension | Entered Cetus 4802 | -6/Cetus | Spotted Cetus Guard 4802 | -6/Cetus | Spotted Cetus Guard 4804 | -6/Cetus | Spotted Cetus Guard 4804 | -6/Cetus | Spotted Cetus Guard 4809 | -6/Cetus | Discovered exit to Factory (range 20) 4843 | -6/Cetus | Discovered new exit (range 20) 4850 | -6/Cetus | Spotted Cetus Guard 4859 | -6/Cetus | Identified exit to Archives 4859 | -6/Cetus | Entered Archives 4882 | -6/Archives | Discovered new exit (range 20) 4884 | -6/Archives | Unable to access archive contents 4890 | -6/Archives | Identified exit to Hub_04(d) 4891 | -6/Archives | Entered Hub_04(d) 4919 | -6/Hub_04(d) | Lost 4 parts (1p1n2u) 5086 | -6/Hub_04(d) | Discovered exit to Factory (range 14) 5086 | -6/Hub_04(d) | Spotted B-75 Beast 5095 | -6/Hub_04(d) | Entered Factory 5095 | -5/Factory | Evolved 2 slots: Propulsion x2 5266 | -5/Factory | Spotted B-75 Beast 5428 | -5/Factory | Repaired Cloaking Device? 5611 | -5/Factory | Discovered new exit (range 20) 5693 | -5/Factory | Identified exit to Garrison 5693 | -5/Factory | Entered Garrison 5765 | -5/Garrison | Installed Relay Interface Framework 5970 | -5/Garrison | Triggered checkpoint 5971 | -5/Garrison | Triggered checkpoint 5985 | -5/Garrison | Discovered new exit (range 8) 5988 | -5/Garrison | Identified exit to Factory 5989 | -5/Garrison | Entered Factory 6009 | -5/Factory | Lost 3 parts (1n2u) 6135 | -5/Factory | Repaired Gravmag Array 6292 | -5/Factory | Repaired Imp. Antigrav System 6454 | -5/Factory | Spotted B-75 Beast 6588 | -5/Factory | Fabricated A-15 Conveyor? 6750 | -5/Factory | Build established: Hacker-Mutant 6966 | -5/Factory | Discovered new exit (range 11) 6972 | -5/Factory | Identified exit to Factory 6993 | -5/Factory | Entered another Factory area 6993 | -4/Factory | Evolved 2 slots: Utility x2 7133 | -4/Factory | Lost 3 parts (1n1u1w) 7172 | -4/Factory | Lost 3 parts (1p2u) 7337 | -4/Factory | Discovered new exit (range 18) 7382 | -4/Factory | Identified exit to Upper Caves 7383 | -4/Factory | Entered Upper Caves 7386 | -4/Upper Caves | Identified exit to Upper Caves 7532 | -4/Upper Caves | Lost 5 parts (1p1n2u1w) 7571 | -4/Upper Caves | Core integrity fell below 50% 7604 | -4/Upper Caves | Core integrity fell below 20% 7634 | -4/Upper Caves | Lost 6 parts (1p1n3u1w) 7652 | -4/Upper Caves | Entered another Upper Caves area 7655 | -4/Upper Caves | Destroyed by S-27 Virus with Autogun Last Messages --------------- C-30 ARC bursts open, deploying its payload. S-27 Virus unfolds itself. System corrupted: Gyrokinetic Inverter fused. Lance destroyed. Adv. Weight Redist. System destroyed. Adv. Visual Processing Unit destroyed. Gyrokinetic Inverter destroyed. Imp. Hacking Suite destroyed. Imp. Fusion Compressor destroyed. Acquired 55 matter. System corrupted: Component data lost. Searching scrap... Found Imp. System Guard. Found Field Propulsion Drive. Found 46 Matter. Acquired Field Propulsion Drive. LOCATION=UPPER CAVES GOAL=ESCAPE [Achievement: Just Browsing] [Achievement: Achiever] Map ----- +----------------------------------------------------+ | ?????????????????????????????????????????????????? | | ?????????????????????????????????????????????????? | | ?????????????????????????????????????????????????? | | ?????????????????????????????????????????????????? | | ?????????????????????????????????????????????????? | | ?????????????????????????????????????????????????? | | ?????????????????????????????????????????????????? | | ?????????????????????????????????????????????????? | | ?????????????????????????????????????????????????? | | ?????????????????????????????????????????????????? | | ?????????????????????????????????????????????????? | | ?????????????????????????????????????????????????? | | ?????????????????????????????????????????????????? | | ?????????????????????????????????????????????????? | | ?????????????????????????????????????????????????? | | ?????????????????????????????????????????????????? | | ?????????????????????????????????????????????????? | | ?????????????????????????????????????????????????? | | ?????????????????????????????????????????????????? | | ???????????? ?????????????###???????????????????? | | ????????????# ???????????# ???????????????????? | | ????????????# ?????????# #???????????????????? | | ?????????????# ???????# #???????????????????? | | ?????????????# ###### #####???????????????? | | ?????????????# s## ##??????????????? | | ????????????# @ s ##?????????????? | | ?????????????????# ####### s s#?????????????? | | ?????????????????##??????????# #????????????? | | ?????????????????????????????# #????????????? | | ???????????????????????????? #????????????? | | ??????????????????????????? #????????????? | | ??????????????????????????###### ####????????????? | | ???????????????????????????????###???????????????? | | ?????????????????????????????????????????????????? | | ?????????????????????????????????????????????????? | | ?????????????????????????????????????????????????? | | ?????????????????????????????????????????????????? | | ?????????????????????????????????????????????????? | | ?????????????????????????????????????????????????? | | ?????????????????????????????????????????????????? | | ?????????????????????????????????????????????????? | | ?????????????????????????????????????????????????? | | ?????????????????????????????????????????????????? | | ?????????????????????????????????????????????????? | | ?????????????????????????????????????????????????? | | ?????????????????????????????????????????????????? | | ?????????????????????????????????????????????????? | | ?????????????????????????????????????????????????? | | ?????????????????????????????????????????????????? | | ?????????????????????????????????????????????????? | +----------------------------------------------------+ Best States ------------- Heat Dissipation 43 Energy Generation 35 Energy Capacity 325 Matter Stores 300 Matter Capacity 300 Sight Range 20 Terrain Scan Range 16 Terrain Scan Density 10 ECM Strength 2 Cloak Strength 2 Additional Mass Support 9 Armor Coverage 300 Resistance: KI 30 Evasion (%) 73 Melee Accuracy 8 Offensive Hacking 34 Defensive Hacking 10 Item Schematics ----------------- None Robot Schematics ------------------ K-01 Serf | -6/Extension | Hacked Fabricated ------------ A-15 Conveyor | x1 | -5/Factory | Preloaded Alien Tech Used ----------------- None Achievements -------------- Achiever Deadly Force Just Browsing Knowing Is Half The Battle Prison Break Challenges ------------ None Game ------ Seed CloakArmoredCharge Manual? 0 Play Time 01:59:00 Cumulative 25.1 hours Start 2024.12.09 @ 20:54:48 End 2024.12.09 @ 23:40:35 Sessions 1 Manual Loads 0 Difficulty Rogue Special Mode None Game No. 30 Rogue 30 Adventurer 0 Explorer 0 Win Type - Total 0 Types 0/0/0/0/0/0/0/0/0 Lore% 14 Gallery% 25 Achievement% 25 Wizard Run 0 Options --------- Layout 1 ASCII 0 Keyboard 0 Movement Mouse Keybinds 0 Fullscreen 1 Font 24/Smallcaps Map View 50x35 Zoom Use 0% Tactical HUD 0 Map Filters NONE Filters NONE Steam 1 RUN: 156e5f15-c65f-467f-a819-7986e5867536